Cogmind - Beta 15 @@@ ROGUE MODE // 2025.10.03 @ 00:14:46 Player: Figgis Result: Destroyed by G-50 Soldier with Heavy Laser Performance ------------- Evolutions (4) 2000 Regions Visited (14) 2800 Robots Destroyed (203) 1015 Value Destroyed (7376) 7376 Prototype IDs (19) 380 Alien Tech Used (0) 0 Bonus (2030) 2030 TOTAL SCORE: 15601 Bonus ------- High Alert Combat Kills 1082 Follower Combat Kills 148 Registered with UFD 300 Met Optimus in HQ 500 Cogmind --------- Core Integrity 0/850 Matter 75/300 Energy 80/170 System Corruption 20% Temperature Cool (18) Movement Core (600) Ox11 Location -6/Lower Caves Parts ------- > --- POWER (1) -------- Light Antimatter Reactor > --- PROPULSION (5) --- (None) > --- UTILITY (7) ------ Advanced Heat Sink Large Storage Unit > --- WEAPON (2) ------- Power Sword > --- INVENTORY (15) --- Improved Deuterium Engine Micro Nuclear Core Light Angular Momentum Engine Light Fission Core Improved Titanium Leg Improved Heat Sink Advanced Heat Sink Shock Rifle Pulse Rifle Long-range Phase Cannon Coil Gun Hypervelocity Gauss Rifle Heavy Missile Launcher Peak State ------------ > --- POWER ------------ Neutrino Core > --- PROPULSION ------- Improved Carbon-fiber Leg Improved Carbon-fiber Leg Flexi-carbon Leg Flexi-carbon Leg Flexi-carbon Leg > --- UTILITY ---------- Advanced Heat Sink Makeshift Microdissipator Network Large Storage Unit Advanced Targeting Computer Improved Reaction Control System Phase Shifter Layered Medium Armor Plating > --- WEAPON ----------- Proton Cannon Heavy Ion Cannon > --- INVENTORY -------- Light Angular Momentum Engine Improved Carbon-fiber Leg Improved Carbon-fiber Leg Flexi-carbon Leg Advanced Heat Sink Advanced Sensor Array Improved Light Armor Plating Authchip [Propulsion] Authchip [Propulsion] System Restoration Module Heavy Ion Cannon Heavy Machine Gun Heavy Flak Cannon Improved Proton Missile Launcher Power Sword [Rating: 72] Favorites ----------- Power Cooled Ion Engine Engine Cooled Ion Engine Power Core Neutrino Core Reactor Light Antimatter Reactor Propulsion Flexi-carbon Leg Leg Flexi-carbon Leg Utility Large Storage Unit Device Improved Heat Sink Storage Large Storage Unit Processor Targeting Computer Hackware Hacking Suite Protection Layered Medium Armor Plating Weapon Assault Cannon Energy Gun Plasma Rifle Energy Cannon Ion Cannon Ballistic Gun Autogun Ballistic Cannon Assault Cannon Launcher Heavy Missile Launcher Slashing Weapon Mining Claw Build | -11 -10 -10 -9 -9 -9 -8 -8 -8 -8 -8 -6 -6 -6 -6 ------- Run | Yrd Mat Min Mat Min Exi Min Mat Sto Rec Scr Fac Was Fac Low Slots Evolved 8 | . . . 2 . . . 2 . . . 4 . . . Power . | . . . . . . . . . . . . . . . Propulsion 3 | . . . . . . . 1 . . . 2 . . . Utility 5 | . . . 2 . . . 1 . . . 2 . . . Weapon . | . . . . . . . . . . . . . . . Parts Attached 148 | 3 11 1 19 1 1 4 24 8 1 6 59 2 7 1 Power 16 | . 2 . 4 . . 1 3 . . . 5 . . 1 Engine 11 | . 2 . 3 . . 1 1 . . . 4 . . . Core 4 | . . . 1 . . . 2 . . . 1 . . . Reactor 1 | . . . . . . . . . . . . . . 1 Propulsion 47 | 2 3 . 5 1 . 2 9 1 1 2 19 . 2 . Treads . | . . . . . . . . . . . . . . . Leg 47 | 2 3 . 5 1 . 2 9 1 1 2 19 . 2 . Wheel . | . . . . . . . . . . . . . . . Hover . | . . . . . . . . . . . . . . . Flight . | . . . . . . . . . . . . . . . Utility 46 | . 3 . 5 . 1 . 5 2 . 2 25 1 2 . Device 17 | . . . 2 . . . 2 2 . 1 10 . . . Storage 4 | . 2 . . . 1 . . . . . 1 . . . Processor 9 | . . . 2 . . . 1 . . . 5 . 1 . Hackware 6 | . 1 . . . . . 1 . . . 4 . . . Protection 10 | . . . 1 . . . 1 . . 1 5 1 1 . Artifact . | . . . . . . . . . . . . . . . Weapon 39 | 1 3 1 5 . . 1 7 5 . 2 10 1 3 . Energy Gun 7 | . . . . . . . 4 2 . 1 . . . . Energy Cannon 13 | . . . 2 . . 1 1 1 . . 6 . 2 . Ballistic Gun 10 | 1 2 1 3 . . . . . . 1 2 . . . Ballistic Cannon 2 | . . . . . . . . 2 . . . . . . Launcher 4 | . . . . . . . 1 . . . 1 1 1 . Special Weapon . | . . . . . . . . . . . . . . . Impact Weapon . | . . . . . . . . . . . . . . . Slashing Weapon 3 | . 1 . . . . . 1 . . . 1 . . . Piercing Weapon . | . . . . . . . . . . . . . . . Special Melee Weapon . | . . . . . . . . . . . . . . . Unidentified Prototypes 9 | . . . 1 . . . 4 1 . . 1 . 2 . Parts Lost 61 | . 2 . 5 . . 1 13 1 1 . 23 3 10 2 Power 8 | . 1 . 2 . . . 2 . . . 3 . . . Propulsion 17 | . . . 1 . . . 5 . . . 7 . 3 1 Utility 20 | . . . 1 . . . 2 1 1 . 8 2 5 . Weapon 16 | . 1 . 1 . . 1 4 . . . 5 1 2 1 Highest Loss Streak 11 | . 2 . 2 . . 1 5 1 1 . 6 3 9 11 To Critical Strikes 1 | . . . . . . . . . . . 1 . . . Average Backups 13 | 3 8 12 14 15 15 14 14 15 15 14 13 14 12 14 Power 1 | 1 . . 1 1 1 1 1 2 2 2 2 5 5 5 Propulsion 3 | . 3 6 5 4 4 4 4 4 4 4 2 3 1 1 Utility 3 | . . 1 3 6 6 6 4 3 4 4 4 2 1 2 Weapon 4 | 1 3 4 4 4 4 3 3 5 5 4 4 4 4 6 Tool/Special . | . . . . . . . . . . . . . . . Unused Backups 36 | . 4 . 7 . . 1 5 2 . 3 8 . . 6 Power 6 | . . . . . . . . . . . 3 . . 3 Propulsion 7 | . 2 . 1 . . 1 1 . . . 2 . . . Utility 6 | . 1 . 1 . . . 3 . . . 1 . . . Weapon 17 | . 1 . 5 . . . 1 2 . 3 2 . . 3 Tool/Special . | . . . . . . . . . . . . . . . Average Slot Usage (%) 96 | . 96 100 98 100 100 99 96 99 96 96 95 80 90 39 Engine 7 | . 12 14 9 . . 9 5 9 9 9 3 6 6 3 Core 1 | . . . 1 11 11 1 3 . . . 2 . . . Leg 27 | . 28 28 22 22 22 22 25 27 27 27 31 26 30 9 Device 9 | . . . 8 11 11 11 11 8 9 8 12 13 12 6 Storage 9 | . 12 14 11 11 11 11 9 9 9 9 6 6 6 6 Processor 7 | . . . 10 11 11 11 11 9 9 9 7 . 3 . Hackware 8 | . 13 14 11 11 11 11 9 9 9 9 5 . . . Protection 5 | . . . 2 . . . 2 8 5 5 10 19 17 . Energy Gun 3 | . . . . . . . 9 13 . 5 1 . . . Energy Cannon 4 | . . . 10 11 11 10 5 . . . 8 . 4 6 Ballistic Gun 7 | . 24 28 11 11 11 11 1 . . 5 2 3 3 . Ballistic Cannon 2 | . . . . . . . . 4 18 7 . . . . Peak Build Rating 72 | 3 10 10 22 22 22 26 34 35 31 47 72 64 59 33 Average Rating 35 | 1 9 10 16 22 22 25 30 32 29 38 62 48 52 25 On Entrance 25 | . 3 10 10 22 22 22 26 34 31 28 41 60 36 33 Naked Turns . | . . . . . . . . . . . . . . . Heaviest Build 86 | 1 26 26 37 37 37 39 42 47 47 47 82 86 61 . Greatest Support 100 | 3 20 20 23 23 23 28 45 45 45 52 100 94 88 . Greatest Overweight (x) 2 | . 1 1 1 1 1 2 1 1 1 1 1 1 2 . Average Overweight (x) . | . . 1 1 1 1 1 . . . . . . . . Largest Inventory Capacity 15 | 5 15 15 15 15 15 15 15 15 15 15 15 15 15 15 Average Capacity 14 | 5 12 15 15 15 15 15 15 15 15 15 15 15 15 15 Most Carried 15 | 5 10 13 15 15 15 15 15 15 15 15 15 15 14 14 Average Carried 13 | 4 8 12 14 15 15 14 14 14 15 14 13 14 12 13 Final Capacity 15 | 5 15 15 15 15 15 15 15 15 15 15 15 15 15 15 Final Carried 15 | 5 10 13 15 15 15 15 15 15 15 15 15 15 14 13 Class Distribution -------------------- 65% | Mutant 25% | Scavenger-Mutant 6% | Hacker-Mutant Dominant Class ---------------- Mutant | -10/Materials Mutant | -10/Mines Scavenger-Mutant | -9/Materials Scavenger-Mutant | -9/Mines Scavenger-Mutant | -9/Exiles Scavenger-Mutant | -8/Mines Scavenger-Mutant | -8/Materials Mutant | -8/Storage Mutant | -8/Recycling Mutant | -8/Scraptown Mutant | -6/Factory Mutant | -6/Waste Machinist-Mutant | -6/Factory Mutant | -6/Lower Caves Resources | -11 -10 -10 -9 -9 -9 -8 -8 -8 -8 -8 -6 -6 -6 -6 ----------- Run | Yrd Mat Min Mat Min Exi Min Mat Sto Rec Scr Fac Was Fac Low Matter Collected 3739 | 186 324 70 459 18 . 125 363 100 80 715 1254 . 45 . Remotely . | . . . . . . . . . . . . . . . Salvage Created 8898 | . 404 99 1103 32 . 294 1985 963 76 . 3898 . 44 . Parts 482 | . 37 14 64 3 . 20 98 44 4 . 194 . 4 . Haulers Intercepted 2 | . . . 1 . . . 1 . . . . . . . Recyclers Shooed 4 | . 1 . 1 . . . . . . . 2 . . . Parts Field Recycled . | . . . . . . . . . . . . . . . Retrieved Matter . | . . . . . . . . . . . . . . . Parts Self-Destructed . | . . . . . . . . . . . . . . . Prevented . | . . . . . . . . . . . . . . . Kills | -11 -10 -10 -9 -9 -9 -8 -8 -8 -8 -8 -6 -6 -6 -6 ------- Run | Yrd Mat Min Mat Min Exi Min Mat Sto Rec Scr Fac Was Fac Low Combat Hostiles Destroyed 165 | . 10 6 24 1 . 10 32 17 2 . 62 . 1 . Melee 4 | . . . . . . . . . . . 3 . 1 . Guns 63 | . 10 6 5 . . 5 12 14 . . 11 . . . Cannons 79 | . . . 19 1 . 5 18 1 2 . 33 . . . AOE 12 | . . . . . . . 2 . . . 10 . . . Classes Destroyed 19 | . 5 . 4 . . 1 2 . 1 . 6 . . . Worker 8 | . . . 2 . . . 3 . . . 3 . . . Builder 2 | . . . . . . . 1 . . . 1 . . . Tunneler 1 | . . . . . . . . . . . 1 . . . Hauler 2 | . . . 1 . . . 1 . . . . . . . Recycler 7 | . 1 . 1 . . . 2 2 . . 1 . . . Mechanic 2 | . . . . . . . . . . . 2 . . . Operator 3 | . 1 . . . . . 2 . . . . . . . Watcher 13 | . 2 . 2 . . . 4 1 . . 4 . . . Swarmer 39 | . 5 6 8 . . 6 3 3 . . 8 . . . Saboteur 1 | . . . . . . . . . . . 1 . . . Grunt 60 | . 5 . 10 1 . 3 18 4 . . 19 . . . Brawler 11 | . . . . . . . 2 . . . 9 . . . Duelist 6 | . . . 1 . . . 1 1 . . 3 . . . Protector 2 | . . . . . . . . . . . 2 . . . Sentry 27 | . . . 5 . . . 8 9 1 . 4 . . . Specialist 2 | . . . . . . . . . . . 2 . . . Hunter 8 | . . . . . . 1 . . . . 7 . . . Programmer 8 | . . . . . . . . . 1 . 6 . 1 . Heavy 1 | . . . . . . . . . . . 1 . . . Best Kill Streak 10 | . 5 3 8 1 . 4 9 10 1 . 8 . 1 . Combat Bots Only 9 | . 3 3 4 1 . 4 7 9 1 . 8 . 1 . Max Kills in Single Turn 4 | . 1 2 2 1 . 2 2 1 1 . 4 . 1 . Gunslinging 1 | . . 1 . . . . . . . . . . . . Exploded 4 | . . . . . . . 1 . . . 4 . . . Melee 1 | . . . . . . . . . . . 1 . 1 . Uniques/NPCs Destroyed . | . . . . . . . . . . . . . . . Combat | -11 -10 -10 -9 -9 -9 -8 -8 -8 -8 -8 -6 -6 -6 -6 -------- Run | Yrd Mat Min Mat Min Exi Min Mat Sto Rec Scr Fac Was Fac Low Hostile Shots Fired 1073 | . 65 27 105 4 . 28 144 76 2 . 442 4 153 23 Missed 329 | . 17 4 31 1 . 7 35 26 . . 151 2 51 4 Hits 744 | . 48 23 74 3 . 21 109 50 2 . 291 2 102 19 Melee 29 | . . . 4 . . . . . . . 19 2 . 4 Projectile 715 | . 48 23 70 3 . 21 109 50 2 . 272 . 102 15 AOE 3 | . . . . . . . . . . . 3 . . . Critical Strikes 34 | . 1 . 2 . . 1 8 2 . . 13 1 4 2 Actively Blocked 1 | . . . . . . . . . . . . 1 . . Part Disruptions 2 | . . . . . . . . . 1 . . . 1 . Damage Taken 11129 | . 551 193 978 35 . 288 1639 678 78 . 4962 42 1260 425 Core 1740 | . 137 50 192 . . 34 410 67 . . 505 17 171 157 Absorbed by Shields 168 | . . . . . . . . . . . . 8 160 . Redirected to Shielding 51 | . . . . . . . . . . . 41 4 6 . Ignored by Resistances 405 | . . . . . . . . . . . 382 23 . . Regen/Repaired (Parts) 672 | . . . . . . . 35 196 . . 441 . . . Core Remaining (%) 45 | 100 . 25 . . . 43 . . . 13 . . . . Volleys Fired 568 | . 48 13 75 2 . 20 101 55 9 . 231 5 9 . Largest 2 | . 2 2 2 2 . 2 2 2 1 . 2 1 1 . Hottest 140 | . 40 40 91 83 . 83 124 124 37 . 140 39 60 . Shots Fired 974 | . 96 26 144 4 . 38 179 107 9 . 355 5 11 . Gun 518 | . 96 26 73 2 . 20 97 101 . . 101 1 1 . Cannon 442 | . . . 71 2 . 18 77 6 9 . 249 . 10 . Launcher 14 | . . . . . . . 5 . . . 5 4 . . Special . | . . . . . . . . . . . . . . . Kinetic 336 | . 96 26 73 2 . 20 15 6 9 . 87 1 1 . Thermal 545 | . . . 71 2 . 18 159 101 . . 184 . 10 . Explosive 4 | . . . . . . . . . . . . 4 . . Electromagnetic 89 | . . . . . . . 5 . . . 84 . . . Robot Hit Streak 18 | . 7 5 15 7 . 12 15 18 12 . 18 6 2 . Robot Miss Streak 6 | . 4 3 5 1 . 3 6 4 1 . 5 . 1 . Penetration Max 1 | . . . . . . . . . . . 1 . . . Secondary Targets 8 | . 1 2 . . . . 1 3 . . 1 . . . Max Gunslinging Chain 1 | . 1 1 . . . . 1 1 . . 1 . . . Shots Hit Robots 659 | . 54 16 89 2 . 26 120 72 7 . 258 5 6 4 Core Hits 309 | . 26 7 34 1 . 15 70 27 2 . 124 1 2 . Critical Kills 8 | . . . 1 . . . . . . . 7 . . . Critical Parts Destroyed 13 | . 1 . . . . . . . . . 12 . . . Critical Strikes 44 | . 1 . 1 . . . 3 9 2 . 25 . 1 2 Burn 13 | . . . . . . . 3 9 . . 1 . . . Meltdown 1 | . . . 1 . . . . . . . . . . . Destroy 21 | . 1 . . . . . . . . . 20 . . . Blast 2 | . . . . . . . . . 2 . . . . . Corrupt 2 | . . . . . . . . . . . 2 . . . Sever 5 | . . . . . . . . . . . 2 . 1 2 Melee Attacks 31 | . 5 . . . . . 1 . . . 14 . 6 5 Impact . | . . . . . . . . . . . . . . . Slashing 31 | . 5 . . . . . 1 . . . 14 . 6 5 Piercing . | . . . . . . . . . . . . . . . Sneak Attacks 3 | . . . . . . . . . . . 2 . . 1 Combat Hostiles 1 | . . . . . . . . . . . . . . 1 Follow-up Attacks . | . . . . . . . . . . . . . . . Damage Inflicted 16617 | . 555 164 1751 51 . 526 3035 1459 186 . 8090 479 157 164 Guns 4999 | . 530 164 625 . . 222 1173 1429 . . 849 7 . . Cannons 8562 | . . . 1126 51 . 304 1399 30 186 . 5419 . 47 . Explosions 2296 | . . . . . . . 463 . . . 1361 472 . . Melee 746 | . 25 . . . . . . . . . 447 . 110 164 Ramming 14 | . . . . . . . . . . . 14 . . . Kinetic 2476 | . 530 164 625 . . 222 168 30 186 . 544 7 . . Thermal 10378 | . . . 1126 51 . 304 2434 1429 . . 4987 . 47 . Explosive 644 | . . . . . . . 172 . . . . 472 . . Electromagnetic 2359 | . . . . . . . 261 . . . 2098 . . . Impact . | . . . . . . . . . . . . . . . Slashing 746 | . 25 . . . . . . . . . 447 . 110 164 Piercing . | . . . . . . . . . . . . . . . Highest Corruption 20 | . . . . . . . . . . . 12 18 20 20 Average Corruption 8 | . . . . . . . . . . . 4 17 18 20 Corruption Purged 2 | . . . . . . . . . . . 2 . . . Corruption Blocked . | . . . . . . . . . . . . . . . Effects 63 | . . . . . . . . . . . 33 6 24 . Message Errors 15 | . . . . . . . . . . . 7 2 6 . Matter Fused 11 | . . . . . . . . . . . 6 1 4 . Heat Flow Errors 9 | . . . . . . . . . . . 7 1 1 . Energy Discharges 10 | . . . . . . . . . . . 6 . 4 . Data Loss (minor) 8 | . . . . . . . . . . . 4 . 4 . Data Loss (major) 2 | . . . . . . . . . . . . . 2 . Misfires 3 | . . . . . . . . . . . 1 . 2 . Alerts 1 | . . . . . . . . . . . 1 . . . Misdirections 3 | . . . . . . . . . . . . 2 1 . Weapon Failures 1 | . . . . . . . . . . . 1 . . . Overload Shots . | . . . . . . . . . . . . . . . Overflow Damage 244 | . . . 21 . . 1 11 . 3 . 208 . . . Projectiles 117 | . . . 21 . . 1 11 . 3 . 81 . . . Explosions 107 | . . . . . . . . . . . 107 . . . Melee 20 | . . . . . . . . . . . 20 . . . Knockbacks 2 | . . . . . . . . . 1 . 1 . . . Impact 1 | . . . . . . . . . . . 1 . . . Kinetic 1 | . . . . . . . . . 1 . . . . . Secondary . | . . . . . . . . . . . . . . . Self-Inflicted Damage 239 | . . . . . . . . . . . 239 . . . Shots 4 | . . . . . . . . . . . 4 . . . Rammed . | . . . . . . . . . . . . . . . Targets Rammed 2 | . . . . . . . . . . . 2 . . . Kicked 2 | . . . . . . . . . . . 2 . . . Crushed . | . . . . . . . . . . . . . . . Highest Temperature 253 | . 18 . 188 18 . 33 200 132 . . 253 157 74 . Average Temperature 42 | . 9 . 43 10 . 14 47 34 . . 49 93 38 . Received Heat Transfer 3207 | . 249 . 306 18 . 117 945 225 9 . 1184 . 19 135 Siege Activations . | . . . . . . . . . . . . . . . Martial Activations . | . . . . . . . . . . . . . . . Shielding Activations . | . . . . . . . . . . . . . . . Robots Disrupted . | . . . . . . . . . . . . . . . Combat Hostiles . | . . . . . . . . . . . . . . . Robots Corrupted 1 | . . . . . . . . . . . 1 . . . Combat Hostiles 1 | . . . . . . . . . . . 1 . . . Parts Fried 9 | . . . . . . . 2 . . . 7 . . . Impact Corruptions . | . . . . . . . . . . . . . . . Robots Melted 6 | . . . 1 . . . . 2 . . 3 . . . Combat Hostiles 5 | . . . . . . . . 2 . . 3 . . . Parts Melted 35 | . . . 2 . . . 8 14 . . 11 . . . Heat Transferred 16330 | . . . 1887 74 . 481 4342 3367 . . 6105 . 74 . Parts Sabotaged . | . . . . . . . . . . . . . . . Parts Stolen . | . . . . . . . . . . . . . . . Parts Stripped . | . . . . . . . . . . . . . . . Power Chain Reactions 5 | . . . . . . . 2 . . . 3 . . . Alert | -11 -10 -10 -9 -9 -9 -8 -8 -8 -8 -8 -6 -6 -6 -6 ------- Run | Yrd Mat Min Mat Min Exi Min Mat Sto Rec Scr Fac Was Fac Low Maximum Alert Level 4 | . . . 1 . . . 1 1 . . 4 2 1 . Low Security (%) 66 | 100 100 100 78 100 . 100 78 43 100 . 25 . 58 . Level 1 16 | . . . 21 . . . 21 56 . . 18 . 41 . Level 2 6 | . . . . . . . . . . . 20 100 . . Level 3 3 | . . . . . . . . . . . 11 . . . Level 4 6 | . . . . . . . . . . . 23 . . . Level 5 . | . . . . . . . . . . . . . . . High Security . | . . . . . . . . . . . . . . . Max Security . | . . . . . . . . . . . . . . . Peak Influence 1446 | . 122 95 290 66 . 120 350 332 74 . 1446 519 317 . Initial 504 | . . 1 . 53 . . . 135 6 . . 504 317 . Average 230 | . 35 15 100 21 . 31 125 173 22 . 582 485 197 . Influence Increases 5888 | . 381 155 736 53 . 271 1010 538 299 . 2332 20 93 . Destroy 0b10 Robot/C 3360 | . 200 120 480 40 . 200 640 340 40 . 1280 . 20 . Destroy 0b10 Robot/NC 210 | . 20 . 30 . . . 65 15 . . 80 . . . Destroy Leader 830 | . 54 20 116 10 . 40 150 122 . . 308 . 10 . Allied During Kill 71 | . . . . 3 . . . . . . 68 . . . Successful Hack 138 | . . . 17 . . . 11 16 18 . 76 . . . Select Force Hacks 240 | . . . . . . . . . 240 . . . . . Disable Machine 300 | . . . 30 . . 15 45 45 . . 165 . . . Anti-Garrison Action 150 | . . . . . . . . . . . 150 . . . Destroy Structure 154 | . 2 . 3 . . 1 54 . 1 . 70 20 3 . Lose Combat Pursuer 435 | . 105 15 60 . . 15 45 . . . 135 . 60 . Influence Decreases 5869 | . 375 161 599 190 . 271 687 843 300 17 892 1006 483 45 Entered New Map 1404 | . . 5 . 84 . . . 188 12 17 . 936 137 25 Time Decay 3286 | . 365 156 399 106 . 261 507 366 238 . 602 40 246 . Lost Part 600 | . 10 . 50 . . 10 130 10 10 . 230 30 100 20 Lost Ally 60 | . . . . . . . . . . . 60 . . . Purge Threat 519 | . . . 150 . . . 50 279 40 . . . . . Squads Dispatched 31 | . 2 . 2 . . . 1 1 . . 23 . 2 . Investigation 6 | . 1 . . . . . . . . . 5 . . . Extermination 6 | . . . . . . . . . . . 5 . 1 . Reinforcement 9 | . 1 . 2 . . . 1 . . . 4 . 1 . Assault 6 | . . . . . . . . . . . 6 . . . Garrison 4 | . . . . . . . . 1 . . 3 . . . Intercept . | . . . . . . . . . . . . . . . Searches Triggered . | . . . . . . . . . . . . . . . Construction Impeded . | . . . . . . . . . . . . . . . Haulers Reinforced . | . . . . . . . . . . . . . . . Active Scanning Responses . | . . . . . . . . . . . . . . . Cargo Convoy Interrupts . | . . . . . . . . . . . . . . . Stealth | -11 -10 -10 -9 -9 -9 -8 -8 -8 -8 -8 -6 -6 -6 -6 --------- Run | Yrd Mat Min Mat Min Exi Min Mat Sto Rec Scr Fac Was Fac Low Distress Signals 14 | . 3 . 2 . . . 3 2 . . 3 . 1 . Communications Jammed . | . . . . . . . . . . . . . . . Distress Signals . | . . . . . . . . . . . . . . . Times Spotted 277 | . 25 7 36 2 . 11 51 25 5 . 90 6 15 4 Peak Tracking Total 7 | . 4 3 6 2 . 3 7 4 3 . 5 6 7 4 Tactical Retreats 22 | . 6 1 3 . . 1 2 . . . 7 . 2 . Traps | -11 -10 -10 -9 -9 -9 -8 -8 -8 -8 -8 -6 -6 -6 -6 ------- Run | Yrd Mat Min Mat Min Exi Min Mat Sto Rec Scr Fac Was Fac Low Traps Triggered 7 | . 1 . . . . . . . . . 6 . . . Indirectly . | . . . . . . . . . . . . . . . Trap Hack Attempts . | . . . . . . . . . . . . . . . Triggered . | . . . . . . . . . . . . . . . Disarmed . | . . . . . . . . . . . . . . . Reprogrammed . | . . . . . . . . . . . . . . . Reused . | . . . . . . . . . . . . . . . Traps Extracted . | . . . . . . . . . . . . . . . Installed . | . . . . . . . . . . . . . . . Triggered . | . . . . . . . . . . . . . . . Machines | -11 -10 -10 -9 -9 -9 -8 -8 -8 -8 -8 -6 -6 -6 -6 ---------- Run | Yrd Mat Min Mat Min Exi Min Mat Sto Rec Scr Fac Was Fac Low Machines Disabled 21 | . . . 2 . . 1 3 3 . . 12 . . . Max in Single Turn 4 | . . . 1 . . 1 2 1 . . 4 . . . Garrison Access 4 | . . . . . . . 1 1 . . 2 . . . Machines Repaired . | . . . . . . . . . . . . . . . Machines Dismantled . | . . . . . . . . . . . . . . . Machines Sabotaged . | . . . . . . . . . . . . . . . Overloaded Fab Kills . | . . . . . . . . . . . . . . . Hacking | -11 -10 -10 -9 -9 -9 -8 -8 -8 -8 -8 -6 -6 -6 -6 --------- Run | Yrd Mat Min Mat Min Exi Min Mat Sto Rec Scr Fac Was Fac Low Machines Accessed 77 | . 6 . 3 . 1 . 13 12 12 6 21 . 3 . Terminals 45 | . 6 . 3 . . . 11 10 4 . 10 . 1 . Fabricators 3 | . . . . . . . . . . . 2 . 1 . Repair Stations 4 | . . . . . . . 1 1 . . 2 . . . Recycling Units 11 | . . . . . . . . . 8 . 3 . . . Scanalyzers 2 | . . . . . . . . . . . 2 . . . Garrison Access 5 | . . . . . . . 1 1 . . 2 . 1 . Total Hacks 245 | . 21 . 17 . 23 . 44 26 28 29 52 . 5 . Successful 168 | . 9 . 11 . 23 . 29 17 20 29 27 . 3 . Failed 76 | . 11 . 6 . . . 15 9 8 . 25 . 2 . Catastrophic 8 | . . . . . . . 1 1 . . 4 . 2 . Database Lockouts 1 | . 1 . . . . . . . . . . . . . Manual 102 | . 14 . 9 . . . 29 3 21 . 24 . 2 . Terminals 148 | . 21 . 17 . . . 41 20 20 . 27 . 2 . Fabricators 7 | . . . . . . . . . . . 5 . 2 . Repair Stations 12 | . . . . . . . 2 3 . . 7 . . . Recycling Units 13 | . . . . . . . . . 8 . 5 . . . Scanalyzers 4 | . . . . . . . . . . . 4 . . . Garrison Access 9 | . . . . . . . 1 3 . . 4 . 1 . Terminal Hacks 103 | . 5 . 10 . 23 . 11 14 7 29 3 . 1 . Record 56 | . 1 . 4 . 23 . . . . 28 . . . . Robot Analysis 9 | . 1 . 2 . . . 3 1 2 . . . . . Prototype ID Bank 2 | . . . 1 . . . . 1 . . . . . . Open Door 6 | . . . . . . . . 5 . . 1 . . . Branch Access Points 3 | . . . 1 . . . 1 . . . . . 1 . Terminal Index 1 | . . . . . . . 1 . . . . . . . Alert Level 2 | . . . . . . . . 2 . . . . . . Unreport Threat 8 | . . . 1 . . . 2 3 2 . . . . . Locate Traps 4 | . 1 . . . . . 1 1 1 . . . . . Maintenance Status 1 | . . . . . . . 1 . . . . . . . Recall Investigation 2 | . 1 . . . . . . . 1 . . . . . Recall Reinforcements 1 | . . . . . . . . . . . 1 . . . Hauler Manifests 3 | . 1 . . . . . 1 . 1 . . . . . Registered Components 2 | . . . 1 . . . . 1 . . . . . . Registered Prototypes 1 | . . . . . . . 1 . . . . . . . Zone Layout 1 | . . . . . . . . . . . 1 . . . Proto ID Catalog 1 | . . . . . . . . . . 1 . . . . Fabricator Hacks 7 | . . . . . . . . . . . 5 . 2 . Network Status 3 | . . . . . . . . . . . 1 . 2 . Load Schematic 2 | . . . . . . . . . . . 2 . . . Build 2 | . . . . . . . . . . . 2 . . . Repair Station Hacks 10 | . . . . . . . 2 2 . . 6 . . . Scan Component 5 | . . . . . . . 1 1 . . 3 . . . Repair 5 | . . . . . . . 1 1 . . 3 . . . Recycling Unit Hacks . | . . . . . . . . . . . . . . . Scanalyzer 3 | . . . . . . . . . . . 3 . . . Insert Component 1 | . . . . . . . . . . . 1 . . . Analyze 2 | . . . . . . . . . . . 2 . . . Garrison Access Hacks 3 | . . . . . . . 1 1 . . 1 . . . Seal Access 3 | . . . . . . . 1 1 . . 1 . . . Unauthorized Hacks 42 | . 4 . 1 . . . 15 . 13 . 9 . . . Terminals 31 | . 4 . 1 . . . 15 . 5 . 6 . . . Botnet 22 | . 4 . 1 . . . 8 . 3 . 6 . . . Skim 9 | . . . . . . . 7 . 2 . . . . . Fabricators . | . . . . . . . . . . . . . . . Repair Stations . | . . . . . . . . . . . . . . . Recycling Units 11 | . . . . . . . . . 8 . 3 . . . Tunnel 8 | . . . . . . . . . 8 . . . . . Fedlink 3 | . . . . . . . . . . . 3 . . . Scanalyzers . | . . . . . . . . . . . . . . . Garrison Access . | . . . . . . . . . . . . . . . Data Cores Recovered 1 | . . . . . . . 1 . . . . . . . Used . | . . . . . . . . . . . . . . . Hacking Detections 50 | . 6 . 3 . . . 12 8 5 . 14 . 2 . Full Trace Events 3 | . . . . . . . . . 1 . 2 . . . Feedback Events . | . . . . . . . . . . . . . . . Feedback Blocked . | . . . . . . . . . . . . . . . Robot Schematics Acquired . | . . . . . . . . . . . . . . . Robots Built . | . . . . . . . . . . . . . . . Authchips . | . . . . . . . . . . . . . . . Time . | . . . . . . . . . . . . . . . Total Robot Build Rating . | . . . . . . . . . . . . . . . Part Schematics Acquired 1 | . . . . . . . . . . . 1 . . . Parts Built 4 | . . . . . . . . . . . 4 . . . Authchips 2 | . . . . . . . . . . . 2 . . . Time 168 | . . . . . . . . . . . 168 . . . Total Part Build Rating 16 | . . . . . . . . . . . 16 . . . Parts Repaired 5 | . . . . . . . 1 1 . . 3 . . . Time 190 | . . . . . . . 38 38 . . 114 . . . Parts Recycled . | . . . . . . . . . . . . . . . Recycled Matter . | . . . . . . . . . . . . . . . Retrieved Matter . | . . . . . . . . . . . . . . . Retrieved Components . | . . . . . . . . . . . . . . . Parts Scanalyzed 1 | . . . . . . . . . . . 1 . . . Part Schematics Acquired 1 | . . . . . . . . . . . 1 . . . Parts Damaged . | . . . . . . . . . . . . . . . Bothacking | -11 -10 -10 -9 -9 -9 -8 -8 -8 -8 -8 -6 -6 -6 -6 ------------ Run | Yrd Mat Min Mat Min Exi Min Mat Sto Rec Scr Fac Was Fac Low Used RIF Installer . | . . . . . . . . . . . . . . . Robots Hacked . | . . . . . . . . . . . . . . . Non-combat . | . . . . . . . . . . . . . . . Combat . | . . . . . . . . . . . . . . . Robot Hacks Applied . | . . . . . . . . . . . . . . . Relay Couplers Released 2 | . . . . . . . . . . . 2 . . . Machine Destruction 2 | . . . . . . . . . . . 2 . . . Fabnet Peak Effective % . | . . . . . . . . . . . . . . . Robots Rewired . | . . . . . . . . . . . . . . . Allies Hacked . | . . . . . . . . . . . . . . . Hacks Repelled . | . . . . . . . . . . . . . . . Allies | -11 -10 -10 -9 -9 -9 -8 -8 -8 -8 -8 -6 -6 -6 -6 -------- Run | Yrd Mat Min Mat Min Exi Min Mat Sto Rec Scr Fac Was Fac Low Total Allies 6 | . . . . 1 . . . . . 5 . . . . Largest Group 5 | . . . . 1 . . . . . 5 5 . . . Highest-Rated Group 238 | . . . . 31 . . . . . 238 238 . . . Highest-Rated Ally 50 | . . . . 31 . . . . . 50 50 . . . Total Orders . | . . . . . . . . . . . . . . . Ally Attacks 53 | . . . . 5 . . . . . . 48 . . . Total Damage 1065 | . . . . 104 . . . . . . 961 . . . Kills 8 | . . . . 1 . . . . . . 7 . . . Allies Corrupted . | . . . . . . . . . . . . . . . Allies Melted 1 | . . . . . . . . . 1 . . . . . Intel | -11 -10 -10 -9 -9 -9 -8 -8 -8 -8 -8 -6 -6 -6 -6 ------- Run | Yrd Mat Min Mat Min Exi Min Mat Sto Rec Scr Fac Was Fac Low Active Infowar (turns) 103 | . . . . . . . . . . . 103 . . . Sensors 103 | . . . . . . . . . . . 103 . . . Robot Analysis Total 9 | . 1 . 2 . . . 3 1 2 . . . . . Derelict Logs Recovered 2 | . . 2 . . . . . . . . . . . . Drone Launches . | . . . . . . . . . . . . . . . Drone Recoveries . | . . . . . . . . . . . . . . . Exploration | -11 -10 -10 -9 -9 -9 -8 -8 -8 -8 -8 -6 -6 -6 -6 ------------- Run | Yrd Mat Min Mat Min Exi Min Mat Sto Rec Scr Fac Was Fac Low Turns Passed 16265 | 36 1351 1077 1148 331 350 1067 1662 1134 982 2593 3898 92 532 12 Spaces Moved 9121 | 32 739 534 445 171 184 497 899 620 607 1815 2131 63 384 . Core 133 | 32 101 . . . . . . . . . . . . . Treads . | . . . . . . . . . . . . . . . Legs 8988 | . 638 534 445 171 184 497 899 620 607 1815 2131 63 384 . Wheels . | . . . . . . . . . . . . . . . Hover . | . . . . . . . . . . . . . . . Flight . | . . . . . . . . . . . . . . . Fastest Speed 50 | 50 50 190 190 190 190 190 120 123 123 123 120 120 120 . Average Speed 146 | 50 150 190 190 190 190 190 130 140 157 140 122 124 124 . Slowest Speed 260 | 50 190 190 190 190 190 260 193 193 193 193 195 192 260 . Overloaded Moves . | . . . . . . . . . . . . . . . Propulsion Burnouts . | . . . . . . . . . . . . . . . Robots Hopped . | . . . . . . . . . . . . . . . Potential Cave-ins 6 | . . . . . . . . . . . . 6 . . Cave-ins Triggered . | . . . . . . . . . . . . . . . Exploration Rate (%) 61 | 4 98 92 44 27 47 99 91 93 99 89 54 65 12 1 Regions Visited 14 Branch Regions 8 Pre-discovered Areas 12 | . . . . . 1 . 2 . 8 . 1 . . . Known Exits Taken 4 | . . . 1 . . . 1 1 . . . . 1 . Unknown Exits Taken 8 | 1 1 1 . 1 1 1 . . 1 1 . . . . Scrap Searched 15 | . . 2 . . . 1 . . . 12 . . . . Spaces Dug 6 | . 2 . . . . . 1 . . . 1 . 2 . Terrain Destroyed 165 | . 2 . . . . 1 60 . . . 58 42 2 . Melee 5 | . 2 . . . . . 1 . . . . . 2 . Projectile 23 | . . . . . . 1 5 . . . 17 . . . AOE 133 | . . . . . . . 54 . . . 37 42 . . Terrain Rammed . | . . . . . . . . . . . . . . . Walls Destroyed . | . . . . . . . . . . . . . . . Machines Disabled . | . . . . . . . . . . . . . . . Actions | -11 -10 -10 -9 -9 -9 -8 -8 -8 -8 -8 -6 -6 -6 -6 --------- Run | Yrd Mat Min Mat Min Exi Min Mat Sto Rec Scr Fac Was Fac Low Total 11099 | 50 890 573 629 174 185 587 1209 775 623 1860 3047 70 421 6 Wait 961 | 10 65 23 49 . . 61 140 78 5 20 506 . 4 . Move 9108 | 31 738 533 444 170 183 496 898 619 606 1814 2131 62 383 . Hop . | . . . . . . . . . . . . . . . Pick Up 130 | 6 12 3 19 . . 2 24 4 . 6 46 1 7 . Fast Attach 37 | 2 4 . 3 . . . 6 4 . 6 12 . . . Attach 69 | 1 3 . 7 . . 1 15 . . . 31 1 9 1 Detach 1 | . . . . . . . . . . . . . 1 . Swap 78 | . 6 1 11 1 1 3 8 6 1 2 35 1 2 . Drop 109 | . 9 . 21 1 1 4 16 9 1 12 35 . . . Fire 568 | . 48 13 75 2 . 20 101 55 9 . 231 5 9 . Melee 31 | . 5 . . . . . 1 . . . 14 . 6 5 Ram . | . . . . . . . . . . . . . . . Kick 2 | . . . . . . . . . . . 2 . . . Crush . | . . . . . . . . . . . . . . . Escape Stasis 4 | . . . . . . . . . . . 4 . . . Rewire 1 | . . . . . . . . . 1 . . . . . Trap . | . . . . . . . . . . . . . . . Miscellaneous . | . . . . . . . . . . . . . . . Route ------- -11/Scrapyard -10/Materials (discovered 5 exits: *Mat x3 / [*Min] / [*Sub]) -10/Mines (discovered 2 exits: *Mat x2) -9/Materials (discovered 2 exits: *Min x2) -9/Mines (discovered 2 exits: *Exi / [*Zio]) -9/Exiles -8/Mines (discovered 2 exits: *Mat x2) -8/Materials (discovered 4 exits: *Fac x3 / *Sto) -8/Storage (discovered 2 exits: *Fac / *Rec) -8/Recycling (discovered 2 exits: *Fac / *Scr) -8/Scraptown (discovered 2 exits: *Fac x2) -6/Factory (discovered 5 exits: [*Fac] / *Low x2 / *Ext x2) -6/Waste -6/Factory (discovered 4 exits: *Low x2 / Ext x2) -6/Lower Caves History --------- Turn | Location | Event 13 | -11/Scrapyard | Discovered new exit (range 16) 37 | -11/Scrapyard | Entered Materials 318 | -10/Materials | Build established: Mutant 332 | -10/Materials | Discovered new exit (range 16) 379 | -10/Materials | Discovered new exit (range 15) 480 | -10/Materials | Discovered new exit (range 10) 596 | -10/Materials | Discovered new exit (range 15) 1155 | -10/Materials | Discovered new exit (range 11) 1156 | -10/Materials | Core integrity fell below 50% 1268 | -10/Materials | Central database locked down 1388 | -10/Materials | Entered Mines 1475 | -10/Mines | Learned Materials stockpile data 1551 | -10/Mines | Discovered new exit (range 8) 1661 | -10/Mines | Discovered new exit (range 6) 2465 | -10/Mines | Entered Materials 2465 | -9/Materials | Evolved 2 slots: Utility x2 2466 | -9/Materials | Identified exit to Mines 3219 | -9/Materials | Build established: Scavenger-Mutant 3613 | -9/Materials | Entered Mines 3616 | -9/Mines | Received a Mining Laser from a helpful Derelict 3734 | -9/Mines | Assembled infested the area 3806 | -9/Mines | A Derelict revealed a hidden shortcut to a safe place 3824 | -9/Mines | Deemed a non-threat by the Exiles lab entrance 3826 | -9/Mines | Discovered new exit (range 5) 3944 | -9/Mines | Entered Exiles 3990 | -9/Exiles | Met 8R-AWN 4022 | -9/Exiles | Met EX-HEX 4098 | -9/Exiles | Met EX-DEC 4108 | -9/Exiles | Learned location of Zion (-7) 4176 | -9/Exiles | Discovered new exit (range 10) 4294 | -9/Exiles | Entered Mines 4346 | -8/Mines | Core integrity fell below 50% 4763 | -8/Mines | Discovered new exit (range 10) 4860 | -8/Mines | Discovered new exit (range 11) 5361 | -8/Mines | Entered Materials 5361 | -8/Materials | Evolved 2 slots: Propulsion x1, Utility x1 5681 | -8/Materials | Destroyed 7 combat bots 5688 | -8/Materials | Lost 5 parts (2p1n1u1w) 5768 | -8/Materials | Repaired Imp. Heat Sink 5848 | -8/Materials | Discovered new exit (range 5) 6063 | -8/Materials | Core integrity fell below 50% 6105 | -8/Materials | Lost 5 parts (3n1u1w) 6353 | -8/Materials | Identified exit to Storage 6379 | -8/Materials | Discovered new exit (range 3) 6573 | -8/Materials | Learned Storage emergency access door positions 6625 | -8/Materials | Learned Factory garrison access intel 6669 | -8/Materials | Learned Factory repair station intel 6701 | -8/Materials | Build established: Mutant 6703 | -8/Materials | Learned Storage stockpile data 6728 | -8/Materials | Learned Factory terminal intel 6767 | -8/Materials | Discovered new exit (range 16) 6807 | -8/Materials | Identified exit to Factory 6864 | -8/Materials | Learned 2 Storage zone layouts 7023 | -8/Materials | Entered Storage 7024 | -8/Storage | Identified exit to Recycling 7134 | -8/Storage | Garrison activated, responded to threat 7183 | -8/Storage | Destroyed 9 combat bots 7211 | -8/Storage | Core integrity fell below 20% 7274 | -8/Storage | Repaired Hrd. Medium Armor Plating 7696 | -8/Storage | Met 01-MTF 8149 | -8/Storage | Used back door to open Recycling access 8157 | -8/Storage | Entered Recycling 8157 | -8/Recycling | Accompanied by 1 ally (01-MTF) 8704 | -8/Recycling | Discovered new exit (range 16) 9099 | -8/Recycling | Scanned before Scraplab entrance 9128 | -8/Recycling | Entered Scraplab 9138 | -8/Recycling | Discovered new exit (range 2) 9139 | -8/Recycling | Entered Scraptown 9474 | -8/Scraptown | Discovered new exit (range 9) 9629 | -8/Scraptown | Visited Symbiants 9665 | -8/Scraptown | Visited Spacefarers 10068 | -8/Scraptown | Visited CPS Storage 10087 | -8/Scraptown | Visited Fellowship of the Rings 10136 | -8/Scraptown | Visited Bundlers 10285 | -8/Scraptown | Visited Shadow of the Wyrm 10305 | -8/Scraptown | Visited Cyclists 10329 | -8/Scraptown | Visited UFD Registry 10329 | -8/Scraptown | Registered with UFD as "Deathsourcer" 10353 | -8/Scraptown | Entered Cyclist Reading Room 10461 | -8/Scraptown | Visited Abandonware Association 10477 | -8/Scraptown | Learned abandonware demo "ERRANTS.EXE" 10477 | -8/Scraptown | Learned abandonware demo "MELTYB.EXE" 10505 | -8/Scraptown | Visited Science Guys 10612 | -8/Scraptown | Visited Scrapoid Pod Storage 10628 | -8/Scraptown | Found Scrapoid Pod 11297 | -8/Scraptown | Visited DA-N13 Charitable Foundation 11308 | -8/Scraptown | Found DCF Scrap (31 items) 11314 | -8/Scraptown | Scrapoid Pod released 08S05-D (x5) 11343 | -8/Scraptown | Visited Scrap Suit Storage 11436 | -8/Scraptown | Visited Junk Repository 11479 | -8/Scraptown | Visited Chapter 10 11570 | -8/Scraptown | Visited Supply Room 11652 | -8/Scraptown | Met Optimus 11652 | -8/Scraptown | Accepted into 0bPrime 11717 | -8/Scraptown | Discovered new exit (range 3) 11732 | -8/Scraptown | Entered Factory 11732 | -6/Factory | Accompanied by 5 allies 11732 | -6/Factory | Evolved 4 slots: Propulsion x2, Utility x2 11733 | -6/Factory | Identified exit to Lower Caves 11734 | -6/Factory | Loaded intel: 27 terminal locations 11735 | -6/Factory | Loaded intel: 6 repair station locations 11736 | -6/Factory | Loaded intel: 4 garrison access locations 12059 | -6/Factory | Repaired Lyr. Medium Armor Plating 12080 | -6/Factory | Build established: Hacker-Mutant 12111 | -6/Factory | Repaired Hvy. Pick 12166 | -6/Factory | Loaded intel: 8 recycling unit locations 12454 | -6/Factory | Garrison activated, responded to threat 12482 | -6/Factory | Lost 3 allies 12558 | -6/Factory | Destroyed 8 combat bots 12858 | -6/Factory | Discovered new exit (range 13) 13076 | -6/Factory | Build established: Scavenger-Mutant 13094 | -6/Factory | Discovered new exit (range 5) 13397 | -6/Factory | Build established: Mutant 14182 | -6/Factory | First assault squad dispatched 14333 | -6/Factory | Lost 6 parts (2p1n3u) 14617 | -6/Factory | Learned location of Protoforge (-2) 14644 | -6/Factory | Found Prototype Processor 14645 | -6/Factory | Identified Exp. Targeting Computer 14709 | -6/Factory | Garrison activated, responded to threat 14781 | -6/Factory | Lost 5 parts (3n1u1w) 14899 | -6/Factory | Fabricated Imp. Carbon-fiber Leg (x2) 14992 | -6/Factory | Fabricated Imp. Carbon-fiber Leg (x2) 15078 | -6/Factory | Build established: Scavenger-Mutant 15111 | -6/Factory | Lost 6 parts (1n2u3w) 15174 | -6/Factory | Repaired Med. Reactive Plating 15220 | -6/Factory | Discovered new exit (range 10) 15386 | -6/Factory | Build established: Mutant 15400 | -6/Factory | Core integrity fell below 50% 15402 | -6/Factory | System corruption reached 10% 15441 | -6/Factory | Lost 4 parts (1p2n1u) 15630 | -6/Factory | Sucked down chute 15630 | -6/Factory | Entered Waste 15640 | -6/Waste | Spotted C-40 Crusher 15645 | -6/Waste | EMP discharged 15651 | -6/Waste | Spotted C-40 Crusher 15656 | -6/Waste | Spotted C-40 Crusher 15659 | -6/Waste | Spotted C-40 Crusher 15664 | -6/Waste | Spotted C-40 Crusher 15670 | -6/Waste | Crushed by Compactor (1 part destroyed, 1 dropped) 15675 | -6/Waste | Crushed by Compactor (1 part destroyed, 2 dropped) 15689 | -6/Waste | Spotted C-40 Crusher 15704 | -6/Waste | Discovered new exit (range 16) 15706 | -6/Waste | Lost 3 parts (2u1w) 15722 | -6/Waste | Entered Factory 15979 | -6/Factory | Identified exit to Extension 16033 | -6/Factory | Build established: Machinist-Mutant 16137 | -6/Factory | Spotted B-75 Beast 16250 | -6/Factory | Core integrity fell below 20% 16254 | -6/Factory | Entered Lower Caves 16266 | -6/Lower Caves | Destroyed by G-50 Soldier with Heavy Laser Last Messages --------------- 16217_ Acquired 44 matter. 16219_ R-10 Processor collects Gravmag System. 16220_ Acquired Shock Rifle. 16221_ System corrupted: Matter fused (-5). 16222_ R-10 Processor collects Target Analyzer. 16235_ Imp. Light Armor Plating destroyed. 16237_ FQFBCDBKJQWNYEVV/IDR| 16240_ Hardlight Generator destroyed. 16240_ Slug penetrates Wall. 16240_ T-07 Excavator destroyed. 16254_ System corrupted: Energy discharge (-107). LOCATION=LOWER CAVES GOAL=ESCAPE 16254_ Sneak attack on G-50 Soldier. 16254_ G-50 Soldier Carbon-fiber Leg severed. 16255_ Imp. Carbon-fiber Leg destroyed. 16259_ Rnf. Deuterium Engine severed. 16259_ L-41 Fighter Carbon-fiber Leg severed. 16260_ Ion Cannon destroyed. 16263_ Arm. Leg severed. Map ----- +----------------------------------------------------+ | ????????????????????????????????????????????? | | ????????????????????????????????????????????? | | ????????????????????????????????????????????? | | ????????????????????????????????????????????? | | ????????????????????????????????????????????? | | ????????????????????????????????????????????? | | ????????????????????????????????????????????? | | ????????????????????????????????????????????? | | ????????????????????????????????????????????? | | ????????????????????????????????????????????? | | ????????????????????????????????????????????? | | ????????????????????????????????????????????? | | ????????????????????# ??????????????????????? | | ????????????????????? ??????????????????????? | | ????????????????????? "?????????????????????? | | ????????????????????? ?????????????????????? | | ?????????????????????? ?????????????????????? | | ?????????????????????? #????????????????????? | | ?????????????????????? #???????????????????? | | ??????????????????????? ???????????????????? | | ??????????????????????? ???????????????????? | | ???????????????????????# ???????????????????? | | ???????????????????#???# ##?????????????????? | | ???????????????????# ## g##????????????????? | | ????????????????????# = ##???????????????? | | ?????????????????????#g @ #???????????????? | | ?????????????????????#g l= #???????????????? | | ??????????????????? ##???????????????? | | ??????????????????######## #????????????????? | | ?????????????????????????? #????????????????? | | ?????????????????????????? #????????????????? | | ?????????????????????????? #????????????????? | | ?????????????????????????? #????????????????? | | ?????????????????????????? #????????????????? | | ???????????????????????????#????????????????? | | ????????????????????????????????????????????? | | ????????????????????????????????????????????? | | ????????????????????????????????????????????? | | ????????????????????????????????????????????? | | ????????????????????????????????????????????? | | ????????????????????????????????????????????? | | ????????????????????????????????????????????? | | ????????????????????????????????????????????? | | ????????????????????????????????????????????? | | ????????????????????????????????????????????? | | ????????????????????????????????????????????? | | ????????????????????????????????????????????? | | ????????????????????????????????????????????? | | ????????????????????????????????????????????? | | ????????????????????????????????????????????? | +----------------------------------------------------+ Best States ------------- Heat Dissipation 75 Energy Generation 19 Energy Capacity 315 Matter Stores 300 Matter Capacity 300 Sight Range 16 Robot Scan Range 16 Terrain Scan Density 10 Corruption Containment 8 Armor Coverage 600 Resistance: KI 30 Core Shielding 20 Phase Shifting 5 Evasion (%) 70 Targeting Accuracy 13 Target Analysis 6 Offensive Hacking 20 Defensive Hacking 10 Authchip Count 2 Item Schematics ----------------- Imp. Carbon-fiber Leg | -6/Factory | Scanalyzed Robot Schematics ------------------ None Fabricated ------------ Imp. Carbon-fiber Leg | x2 | -6/Factory | Authchip Imp. Carbon-fiber Leg | x2 | -6/Factory | Authchip Repaired ---------- Imp. Heat Sink | 12% | -8/Materials Hrd. Medium Armor Plating | 18% | -8/Storage Lyr. Medium Armor Plating | 37% | -6/Factory Hvy. Pick | 53% | -6/Factory Med. Reactive Plating | 10% | -6/Factory Alien Tech Used ----------------- None Achievements -------------- None Challenges ------------ None Game ------ Seed HardcellConstructPropulsion Manual? 0 Play Time 01:44:49 Cumulative 206.6 hours Start 2025.10.02 @ 22:14:38 End 2025.10.03 @ 00:14:46 Sessions 2 Manual Loads 0 Difficulty Rogue Special Mode None Game No. 322 Rogue 319 Adventurer 3 Explorer 0 Win Type - Total 1 Types 1/0/0/0/0/0/0/0/0/0 Lore% 66 Gallery% 61 Achievement% 48 Wizard Run 0 Options --------- Layout 0 ASCII 0 Keyboard 0 Movement Mouse Keybinds 0 Fullscreen 2 Font 18/SmallcapsGlow Map View 76x50 Zoom Use 0% Tactical HUD 1 Map Filters NONE Filters NONE Steam 1 RUN: 00c2b5fa-812a-4e3d-8b40-e60cf942e7b7